﻿Department family,Entity,Date,Expense type,Expense area,Supplier,Transaction number,Amount,Description,Supplier Postcode
Balance Sheet,L2 Current Assets,26/10/2022,Finished Processed Goods,Stock & Work In Progress,Aah Pharmaceuticals Ltd,68909559W,"42,130.58 ",Pharmaceutical Purchase,CV2 2ZG
Pmu,Pmu,14/10/2022,Drugs,Pmu,Alliance Healthcare Distribution Ltd,F26953598,"45,840.58 ",Pharmaceutical Purchase,KT9 1SN
Pmu,Pmu,14/10/2022,Drugs,Pmu,Alliance Healthcare Distribution Ltd,F27751858,"63,360.60 ",Pharmaceutical Purchase,KT9 1SN
Pmu,Pmu,14/10/2022,Drugs,Pmu,Alliance Healthcare Distribution Ltd,F28454480,"65,588.40 ",Pharmaceutical Purchase,KT9 1SN
Balance Sheet,L2 Current Assets,05/10/2022,Finished Processed Goods,Stock & Work In Progress,Alliance Healthcare Distribution Ltd,F29350191,"40,901.76 ",Pharmaceutical Purchase,KT9 1SN
Balance Sheet,L2 Current Assets,07/10/2022,Finished Processed Goods,Stock & Work In Progress,Alliance Healthcare Distribution Ltd,F29854233,"49,896.00 ",Pharmaceutical Purchase,KT9 1SN
Balance Sheet,L2 Current Assets,12/10/2022,Finished Processed Goods,Stock & Work In Progress,Alliance Healthcare Distribution Ltd,F29C55190,"55,287.47 ",Pharmaceutical Purchase,KT9 1SN
Pmu,Pmu,14/10/2022,Drugs,Pmu,Alliance Healthcare Distribution Ltd,F29D54309,"78,699.60 ",Pharmaceutical Purchase,KT9 1SN
Pmu,Pmu,26/10/2022,Drugs,Pmu,Alliance Healthcare Distribution Ltd,F29Q54724,"26,983.92 ",Pharmaceutical Purchase,KT9 1SN
Balance Sheet,L2 Current Assets,26/10/2022,Finished Processed Goods,Stock & Work In Progress,Alliance Healthcare Distribution Ltd,F29R55011,"42,712.74 ",Pharmaceutical Purchase,KT9 1SN
Balance Sheet,L2 Current Assets,26/10/2022,Finished Processed Goods,Stock & Work In Progress,Alliance Healthcare Distribution Ltd,F29U53391,"40,925.02 ",Pharmaceutical Purchase,KT9 1SN
Balance Sheet,L2 Current Assets,26/10/2022,Finished Processed Goods,Stock & Work In Progress,Alloga Uk Ltd,SIN103590570,"43,800.00 ",Pharmaceutical Purchase,DE55 2FH
Balance Sheet,L2 Current Assets,05/10/2022,Finished Processed Goods,Stock & Work In Progress,Bayer Plc,824C440928,"27,373.68 ",Pharmaceutical Purchase,RG2 6AD
Balance Sheet,L2 Current Assets,07/10/2022,Finished Processed Goods,Stock & Work In Progress,Bayer Plc,824C441572,"114,057.00 ",Pharmaceutical Purchase,RG2 6AD
Balance Sheet,L2 Current Assets,12/10/2022,Finished Processed Goods,Stock & Work In Progress,Bayer Plc,824C441985,"27,373.68 ",Pharmaceutical Purchase,RG2 6AD
Balance Sheet,L2 Current Assets,21/10/2022,Finished Processed Goods,Stock & Work In Progress,Bayer Plc,824C444543,"27,373.68 ",Pharmaceutical Purchase,RG2 6AD
Balance Sheet,L2 Current Assets,26/10/2022,Finished Processed Goods,Stock & Work In Progress,Bayer Plc,824C445963,"27,373.68 ",Pharmaceutical Purchase,RG2 6AD
Balance Sheet,L2 Current Assets,26/10/2022,Finished Processed Goods,Stock & Work In Progress,Bayer Plc,824C445964,"114,057.00 ",Pharmaceutical Purchase,RG2 6AD
Families & Specialist Services,Pathology,07/10/2022,Laboratory Test Kits,Microbiology,Becton Dickinson UK Ltd,220006087,"35,899.36 ",(NON COVID laboratory Managed Service Contract) ,RG41 5TS
Surgery & Anaesthetics,Surgical Divisional Support,21/10/2022,Contractual Clinical Services,Independent Sector,Bmi Healthcare Ltd,S5712JUL22,"113,613.91 ",Provision of Elective Activity on behalf of CHFT,SK3 0XN
Recharges,Recharges,26/10/2022,Healthcare From Foundation Trusts,Recharges,Bradford Teaching Hospitals NHS Foundation Trust,322157,"118,442.59 ",Various services provided by agreement as per West Yorkshire Association of Acute Trusts agreed methodology,WF3 1WE
Recharges,Recharges,26/10/2022,Healthcare From Foundation Trusts,Recharges,Bradford Teaching Hospitals NHS Foundation Trust,322158,"118,442.59 ",Various services provided by agreement as per West Yorkshire Association of Acute Trusts agreed methodology,WF3 1WE
Surgery & Anaesthetics,Surgical Divisional Support,21/10/2022,Healthcare From Commercial Sector,Elective Recovery,Calderdale And Huddersfield Orthopaedic Partnership Llp,INV-0051,"43,456.73 ",Provision of Orthopaedic and/or Specialty Healthcare Services,LS8 2JH
Surgery & Anaesthetics,Surgical Divisional Support,07/10/2022,Healthcare From Commercial Sector,Elective Recovery,Calderdale And Huddersfield Orthopaedic Partnership Llp,INV-0056,"30,361.16 ",Provision of Orthopaedic and/or Specialty Healthcare Services,LS8 2JH
Surgery & Anaesthetics,Surgical Divisional Support,26/10/2022,Healthcare From Commercial Sector,Elective Recovery,Calderdale And Huddersfield Orthopaedic Partnership Llp,INV-0057,"75,000.00 ",Provision of Orthopaedic and/or Specialty Healthcare Services,LS8 2JH
Corporate Services,Service Performance,21/10/2022,Contract : Other External,Pfi,Calderdale Hospital Spc Ltd,3692,"3,048,419.56 ",PFI contract monthly payment,M20 2YY
Corporate Services,Service Performance,14/10/2022,Minor Works,Pfi,Calderdale Hospital Spc Ltd,3697,"127,577.17 ",Calderdale LED ligting Project,M20 2YY
Corporate Services,Service Performance,26/10/2022,Rates,Properties,Calderdale Metropolitan Borough Council,25202291017616,"73,387.00 ",Business rates for Calderdale Royal Hospital,HX1 1TP
Recharges,Recharges,26/10/2022,Office Equipment And Materials : Purchase,Recharges,Canon (UK) Ltd,402390870,"73,473.90 ","QUARTERLY RENTAL COST AS PER BELOW•	New devices £18 768.00 per quarter•	Software and Professional Services £4 064.45 per quarter•	Software support £1 593.22 per quarter•	MPS services £7 962.93 per quarter•	Retained devices £6 148.91",RH2 8BF
Corporate Services,Corporate Services,05/10/2022,Professional Fees,Corporate Services,Care Quality Commission,43126754,"30,805.40 ",Annual Fee in 10 installments 30 805.40 each,WF3 1WE
Health Informatics,Information,05/10/2022,Computer Software / License  Fees,Corporate Information & Data Standards,Catalyst BI Limited,INV5367,"85,933.21 ", QLIKVIEW ENTERPRISE EDITION SERVER Licence: 4409 5600 7688 8587   and  QLIKVIEW SMALL BUSINESS EDITION SERVER Licence: 4400  3107  9835  8256. TO COVER INV5367,LS23 6LP
Health Informatics,Modernisation Programme,12/10/2022,Computer Software / License  Fees,Modernisation Programme,Cerner Ltd,102127589,"39,556.80 ",Cerner CCN054 Imprivata Mobile device access & G3 test appliance. subscription services paid monthly. £2742 paid annually £32 964. 1 x 2022. to link to order rwyf400077473,W2 1AF
CHS Estates,L2 Estates,19/10/2022,Med Surg Eqpt Mtce Contracts,Management Estates,De Soutter Medical Ltd,0000606512,"50,076.00 ",2 of 3 Year Maintenance for Orthodrive Modular Rotary Saws and ALL associated Equipment at CRH & HRI - as per EBME asset list.Agreement Commencing - 1st April 2022 - 31st March 2023,HP22 5WF
CHS Estates,L2 Estates,05/10/2022,Computer Software / License  Fees,Management Estates,DH OpCo UK Ltd,5970001909,"29,704.64 ",Provision & support of the i.Labs system. Year 2: 01/01/2022 – 31/12/ 2022 payment terms: quarterly in advance As per the terms and conditions of the NHS SBS Framework ,GU11 1PZ
CHS Facilities,L2 Facilities,26/10/2022,External Contracts : Laundry,Laundry,Elis UK Ltd,SN3503478,"130,143.89 ",Contracted Laundry Services,RG24 8NE
Balance Sheet,Fixed Assets,26/10/2022,Additions - Assets Under Construction,Capital (Medicine & Elderly),Ge Medical Systems Ltd,706818,"64,549.97 ",VENUE GO R3  PRODUCT CODE H45103VGC PLUS ASSOCIATED PRODUCTS ,HP8 4SP
Balance Sheet,Fixed Assets,01/10/2022,Additions - Assets Under Construction,Capital (Pmu),Getinge Limited,3129142032,"69,837.40 ",Autoclave 2 - Controls and mechanical upgrade,NE35 9PZ
Balance Sheet,Fixed Assets,01/10/2022,Additions - Assets Under Construction,Capital (Pmu),Getinge Limited,3129142033,"71,144.95 ",Autoclave 1 - Controls and mechanical upgrade ,NE35 9PZ
Balance Sheet,Fixed Assets,01/10/2022,Additions - Assets Under Construction,Capital (Pmu),Getinge Limited,3129142035,"139,674.80 ",Autoclave 2 - Controls and mechanical upgrade,NE35 9PZ
Balance Sheet,Fixed Assets,01/10/2022,Additions - Assets Under Construction,Capital (Pmu),Getinge Limited,3129142036,"142,289.87 ",Autoclave 1 - Controls and mechanical upgrade ,NE35 9PZ
Medical Division,Emergency Medicine,21/10/2022,B5 Agency Nursing,A&E Nursing,Icare24 Ltd,INV30051A,"5,722.98 ",B5 Agency Nursing,B16 8QG
Corporate Services,Central Operations Team CORP,21/10/2022,B5 Agency Nursing,Central Operations Team CORP,Icare24 Ltd,INV30051A,567.41 ,B5 Agency Nursing,B16 8QG
Medical Division,Medical Specialities,21/10/2022,B5 Agency Nursing,Gastroenterology,Icare24 Ltd,INV30051A,575.85 ,B5 Agency Nursing,B16 8QG
Medical Division,Acute Medical,21/10/2022,B5 Agency Nursing,General Medicine,Icare24 Ltd,INV30051A,"2,887.22 ",B5 Agency Nursing,B16 8QG
Surgery & Anaesthetics,General Surgery,21/10/2022,B5 Agency Nursing,General Surgery,Icare24 Ltd,INV30051A,"1,134.80 ",B5 Agency Nursing,B16 8QG
Medical Division,Acute Medical,21/10/2022,B5 Agency Nursing,Geriatric Medicine,Icare24 Ltd,INV30051A,"3,971.53 ",B5 Agency Nursing,B16 8QG
Medical Division,Integrated Medical Specialities,21/10/2022,B5 Agency Nursing,Ims Stroke / Rehabilitation,Icare24 Ltd,INV30051A,"1,124.20 ",B5 Agency Nursing,B16 8QG
Surgery & Anaesthetics,Operating Services,21/10/2022,B5 Agency Nursing,Operating Services,Icare24 Ltd,INV30051A,"2,165.64 ",B5 Agency Nursing,B16 8QG
Surgery & Anaesthetics,Orthopaedics,21/10/2022,B5 Agency Nursing,Trauma & Orthopaedics,Icare24 Ltd,INV30051A,"2,745.71 ",B5 Agency Nursing,B16 8QG
Medical Division,Emergency Medicine,21/10/2022,B5 Agency Nursing,A&E Nursing,Icare24 Ltd,INV31199A,"2,485.00 ",B5 Agency Nursing,B16 8QG
Corporate Services,Central Operations Team CORP,21/10/2022,B5 Agency Nursing,Central Operations Team CORP,Icare24 Ltd,INV31199A,"2,277.12 ",B5 Agency Nursing,B16 8QG
Surgery & Anaesthetics,Head & Neck,21/10/2022,B5 Agency Nursing,Ent,Icare24 Ltd,INV31199A,567.41 ,B5 Agency Nursing,B16 8QG
Medical Division,Medical Specialities,21/10/2022,B5 Agency Nursing,Gastroenterology,Icare24 Ltd,INV31199A,563.42 ,B5 Agency Nursing,B16 8QG
Medical Division,Acute Medical,21/10/2022,B5 Agency Nursing,General Medicine,Icare24 Ltd,INV31199A,"3,908.51 ",B5 Agency Nursing,B16 8QG
Surgery & Anaesthetics,General Surgery,21/10/2022,B5 Agency Nursing,General Surgery,Icare24 Ltd,INV31199A,"4,075.28 ",B5 Agency Nursing,B16 8QG
Medical Division,Acute Medical,21/10/2022,B5 Agency Nursing,Geriatric Medicine,Icare24 Ltd,INV31199A,"9,630.67 ",B5 Agency Nursing,B16 8QG
Medical Division,Integrated Medical Specialities,21/10/2022,B5 Agency Nursing,Ims Stroke / Rehabilitation,Icare24 Ltd,INV31199A,"1,124.20 ",B5 Agency Nursing,B16 8QG
Medical Division,Medical Specialities,21/10/2022,B5 Agency Nursing,Respiratory,Icare24 Ltd,INV31199A,"1,139.27 ",B5 Agency Nursing,B16 8QG
Surgery & Anaesthetics,Orthopaedics,21/10/2022,B5 Agency Nursing,Trauma & Orthopaedics,Icare24 Ltd,INV31199A,590.41 ,B5 Agency Nursing,B16 8QG
Medical Division,Emergency Medicine,21/10/2022,B5 Agency Nursing,A&E Nursing,Icare24 Ltd,INV31955A,"6,993.11 ",B5 Agency Nursing,B16 8QG
Corporate Services,Central Operations Team CORP,21/10/2022,B5 Agency Nursing,Central Operations Team CORP,Icare24 Ltd,INV31955A,574.89 ,B5 Agency Nursing,B16 8QG
Surgery & Anaesthetics,Head & Neck,21/10/2022,B5 Agency Nursing,Ent,Icare24 Ltd,INV31955A,"1,740.17 ",B5 Agency Nursing,B16 8QG
Medical Division,Medical Specialities,21/10/2022,B5 Agency Nursing,Gastroenterology,Icare24 Ltd,INV31955A,"1,671.60 ",B5 Agency Nursing,B16 8QG
Medical Division,Acute Medical,21/10/2022,B5 Agency Nursing,General Medicine,Icare24 Ltd,INV31955A,"1,683.20 ",B5 Agency Nursing,B16 8QG
Surgery & Anaesthetics,General Surgery,21/10/2022,B5 Agency Nursing,General Surgery,Icare24 Ltd,INV31955A,"4,063.32 ",B5 Agency Nursing,B16 8QG
Medical Division,Acute Medical,21/10/2022,B5 Agency Nursing,Geriatric Medicine,Icare24 Ltd,INV31955A,"6,201.22 ",B5 Agency Nursing,B16 8QG
Medical Division,Integrated Medical Specialities,21/10/2022,B5 Agency Nursing,Ims Stroke / Rehabilitation,Icare24 Ltd,INV31955A,"1,087.68 ",B5 Agency Nursing,B16 8QG
Surgery & Anaesthetics,Operating Services,21/10/2022,B5 Agency Nursing,Operating Services,Icare24 Ltd,INV31955A,"2,650.06 ",B5 Agency Nursing,B16 8QG
Medical Division,Medical Specialities,21/10/2022,B5 Agency Nursing,Respiratory,Icare24 Ltd,INV31955A,"3,807.08 ",B5 Agency Nursing,B16 8QG
Surgery & Anaesthetics,Orthopaedics,21/10/2022,B5 Agency Nursing,Trauma & Orthopaedics,Icare24 Ltd,INV31955A,590.39 ,B5 Agency Nursing,B16 8QG
Medical Division,Emergency Medicine,01/11/2022,B5 Agency Nursing,A&E Nursing,Icare24 Ltd,INV34430A,"3,803.34 ",B5 Agency Nursing,B16 8QG
Corporate Services,Central Operations Team CORP,01/11/2022,B5 Agency Nursing,Central Operations Team CORP,Icare24 Ltd,INV34430A,"3,472.90 ",B5 Agency Nursing,B16 8QG
Medical Division,Medical Specialities,01/11/2022,B5 Agency Nursing,Gastroenterology,Icare24 Ltd,INV34430A,"1,111.77 ",B5 Agency Nursing,B16 8QG
Medical Division,Acute Medical,01/11/2022,B5 Agency Nursing,General Medicine,Icare24 Ltd,INV34430A,"2,760.23 ",B5 Agency Nursing,B16 8QG
Surgery & Anaesthetics,General Surgery,01/11/2022,B5 Agency Nursing,General Surgery,Icare24 Ltd,INV34430A,"4,052.28 ",B5 Agency Nursing,B16 8QG
Medical Division,Acute Medical,01/11/2022,B5 Agency Nursing,Geriatric Medicine,Icare24 Ltd,INV34430A,"2,719.20 ",B5 Agency Nursing,B16 8QG
Medical Division,Integrated Medical Specialities,01/11/2022,B5 Agency Nursing,Ims Stroke / Rehabilitation,Icare24 Ltd,INV34430A,"1,126.84 ",B5 Agency Nursing,B16 8QG
Surgery & Anaesthetics,Operating Services,01/11/2022,B5 Agency Nursing,Operating Services,Icare24 Ltd,INV34430A,"1,168.30 ",B5 Agency Nursing,B16 8QG
Medical Division,Medical Specialities,01/11/2022,B5 Agency Nursing,Respiratory,Icare24 Ltd,INV34430A,543.84 ,B5 Agency Nursing,B16 8QG
Surgery & Anaesthetics,Orthopaedics,01/11/2022,B5 Agency Nursing,Trauma & Orthopaedics,Icare24 Ltd,INV34430A,"2,576.47 ",B5 Agency Nursing,B16 8QG
Medical Division,Emergency Medicine,01/11/2022,B5 Agency Nursing,A&E Nursing,Icare24 Ltd,INV39417A,4439.41,B5 Agency Nursing,B16 8QG
Corporate Services,Central Operations Team CORP,01/11/2022,B5 Agency Nursing,Central Operations Team CORP,Icare24 Ltd,INV39417A,590.41,B5 Agency Nursing,B16 8QG
Medical Division,Acute Medical,01/11/2022,B5 Agency Nursing,General Medicine,Icare24 Ltd,INV39417A,3251.22,B5 Agency Nursing,B16 8QG
Surgery & Anaesthetics,General Surgery,01/11/2022,B5 Agency Nursing,General Surgery,Icare24 Ltd,INV39417A,2336.58,B5 Agency Nursing,B16 8QG
Medical Division,Acute Medical,01/11/2022,B5 Agency Nursing,Geriatric Medicine,Icare24 Ltd,INV39417A,3867.49,B5 Agency Nursing,B16 8QG
Families & Specialist Services,Womens,01/11/2022,B5 Agency Nursing,Gynaecology,Icare24 Ltd,INV39417A,1369.33,B5 Agency Nursing,B16 8QG
Medical Division,Integrated Medical Specialities,01/11/2022,B5 Agency Nursing,Ims Stroke / Rehabilitation,Icare24 Ltd,INV39417A,563.42,B5 Agency Nursing,B16 8QG
Surgery & Anaesthetics,Operating Services,01/11/2022,B5 Agency Nursing,Operating Services,Icare24 Ltd,INV39417A,3006.94,B5 Agency Nursing,B16 8QG
Medical Division,Medical Specialities,01/11/2022,B5 Agency Nursing,Respiratory,Icare24 Ltd,INV39417A,1724.08,B5 Agency Nursing,B16 8QG
Surgery & Anaesthetics,Orthopaedics,01/11/2022,B5 Agency Nursing,Trauma & Orthopaedics,Icare24 Ltd,INV39417A,124.98,B5 Agency Nursing,B16 8QG
Balance Sheet,Fixed Assets,26/10/2022,Additions - Assets Under Construction,CAPITAL (Reconfig HRI),Integrated Health Projects,22100018,"561,067.16 ",Emergency Department - STAGE 3 & 4 GMP SUBMISSION FOR THE DELIVERY OF A NEW ACCIDENT AND EMERGENCY BUILD AT THE HUDDERSFIELD ROYAL INFIRMARY ,WD24 4WW
Estates & Facilities,Estates,05/10/2022,Rates,Estates Operations,Kirklees Council,969286425_2022,"43,093.00 ","business rates for Huddersfield Royal Infirmary invoice 969286425_2022	",HD1 2NF
Families & Specialist Services,Pharmacy,14/10/2022,Healthcare From Commercial Sector,Pharm Gen,L Rowland & Company (Retail) Ltd,1800001135,"95,044.66",Outpatient Pharmacy contract DISPENSING FEE,WA7 3DJ
Families & Specialist Services,Pharmacy,14/10/2022,Healthcare From Commercial Sector,Pharm Gen,L Rowland & Company (Retail) Ltd,1800001135,"784,904.84 ",Outpatient Pharmacy Contract.  medicines costs,WA7 3DJ
Families & Specialist Services,Radiology,21/10/2022,Med Surg Eqpt Hire,Ct,Medispace B.V.,20220447,"30,025.92 ",Rental of a CM050 CT scan box with Canon Prime 160 slice CT scanner plus 2 radiographers to run the service 8am-20.00pm 7 days per week for a period of 52 weeks ,2712 PJ  The Netherlands
Families & Specialist Services,Radiology,26/10/2022,Imaging Equipment Purchases,Rad General,Mid Yorkshire Hospitals NHS Trust,1600021195,"29,100.00 ",regional imaging collaborative sharing solution Qtr 2 ,WF1 4DG
Recharges,Recharges,26/10/2022,Healthcare From NHS Trusts,Recharges,Mid Yorkshire Hospitals NHS Trust,1600021267,"52,918.00 ",Various services provided by agreement as per West Yorkshire Association of Acute Trusts agreed methodology,WF1 4DG
Families & Specialist Services,Pathology,15/10/2022,Blood Products,Blood Sciences,NHS Blood And Transplant,7008554,"85,109.73 ",MONTHLY CONTRACT CHARGE BLOOD & COMPONENTS,LS15 7TW
Families & Specialist Services,Pathology,15/10/2022,Blood Products,Blood Sciences,NHS Blood And Transplant,7008555,"32,812.05 ",MONTHLY CONTRACT CHARGE BLOOD & COMPONENTS,LS15 7TW
Corporate Services,Quality,15/10/2022,Clinical Negligence,Quality,NHS Resolution,SICX410320,"791,186.30",Clinical Negligence provision,SW1W 9SZ
Families & Specialist Services,Womens,15/10/2022,Clinical Negligence,Womens Management,NHS Resolution,SICX410320,"857,768.00",Clinical Negligence provision,SW1W 9SZ
Corporate Services,Quality,15/10/2022,Insurance Costs,Quality,NHS Resolution,SICX410320,"20,850.40 ",Clinical Negligence provision,SW1W 9SZ
Balance Sheet,L2 Current Assets,14/10/2022,Other Debtors < One Year,Other Debtors,NHS Supply Chain,1123130411,"32,000.00 ",AFFINITY 4 REVISED BIRTHING BED - FOAM,DE55 4QJ
CHS Balance Sheet,Current Liabilities,07/10/2022,Non- NHS  Trade Creditors < One Year,Other Creditors,NHS Supply Chain,1123125694,"228,811.76 ",Goods delivered week ending 09/09/2022,DE55 4QJ
CHS Balance Sheet,Current Liabilities,07/10/2022,Non- NHS  Trade Creditors < One Year,Other Creditors,NHS Supply Chain,1123125694,"228,811.76 ",Goods delivered week ending 09/09/2022,DE55 4QJ
CHS Balance Sheet,Current Liabilities,19/10/2022,Non- NHS  Trade Creditors < One Year,Other Creditors,NHS Supply Chain,1123131118,"289,137.47 ",Goods delivered week ending 16/09/2022,DE55 4QJ
CHS Balance Sheet,Current Liabilities,19/10/2022,Non- NHS  Trade Creditors < One Year,Other Creditors,NHS Supply Chain,1123131118,"289,137.47 ",Goods delivered week ending 16/09/2022,DE55 4QJ
CHS Balance Sheet,Current Liabilities,19/10/2022,Non- NHS  Trade Creditors < One Year,Other Creditors,NHS Supply Chain,1123131118,"289,137.47 ",Goods delivered week ending 16/09/2022,DE55 4QJ
CHS Balance Sheet,Current Liabilities,21/10/2022,Non- NHS  Trade Creditors < One Year,Other Creditors,NHS Supply Chain,1123134578,"220,082.17 ",Goods delivered week ending 23/09/2022,DE55 4QJ
CHS Balance Sheet,Current Liabilities,21/10/2022,Non- NHS  Trade Creditors < One Year,Other Creditors,NHS Supply Chain,1123134578,"220,082.17 ",Goods delivered week ending 23/09/2022,DE55 4QJ
CHS Balance Sheet,Current Liabilities,26/10/2022,Non- NHS  Trade Creditors < One Year,Other Creditors,NHS Supply Chain,1123139521,"264,291.15 ",Goods delivered week ending 30/09/2022,DE55 4QJ
CHS Balance Sheet,Current Liabilities,26/10/2022,Non- NHS  Trade Creditors < One Year,Other Creditors,NHS Supply Chain,1123139521,"264,291.15 ",Goods delivered week ending 30/09/2022,DE55 4QJ
CHS Estates,L2 Estates,26/10/2022,Med Surg Eqpt Mtce Contracts,Management Estates,NHS Supply Chain - Maintenance,2123003690,"27,249.14 ",Maintenance of Cardiology Lifecards and Cardiocalls.,DE55 4QJ
CHS Estates,L2 Estates,26/10/2022,Med Surg Eqpt Mtce Contracts,Management Estates,NHS Supply Chain - Maintenance,2123003818,"32,219.66 ",2 of 3 year Gold & Silver Maintenance Package for EMPOWER CTA Injectors and associated Generator Equipment.,DE55 4QJ
CHS Estates,L2 Estates,26/10/2022,Med Surg Eqpt Mtce Contracts,Management Estates,NHS Supply Chain - Maintenance,2123004614,"87,593.11 ",Year 1 of 3 Uptime Maintenance of INGENIA 1.5T including one extended workspace .Located at Huddersfield Royal Infirmary MRI Suite.,DE55 4QJ
Corporate Services,Service Performance,26/10/2022,Rent,Properties,NHS West Yorkshire ICB,7427000052,"76,720.72 ",Todmorden Health Centre 2019-2020,WF3 1WE
Balance Sheet,L2 Current Assets,05/10/2022,Finished Processed Goods,Stock & Work In Progress,Novartis Pharmaceuticals Uk Ltd,92659947,"42,201.60 ",Pharmaceutical Purchase,GU16 7SR
Balance Sheet,L2 Current Assets,21/10/2022,Finished Processed Goods,Stock & Work In Progress,Novartis Pharmaceuticals Uk Ltd,92667345,"42,201.60 ",Pharmaceutical Purchase,W12 7FQ
Balance Sheet,L2 Current Assets,26/10/2022,Finished Processed Goods,Stock & Work In Progress,Novartis Pharmaceuticals Uk Ltd,92669902,"43,520.34 ",Pharmaceutical Purchase,W12 7FQ
CHS Estates,L2 Estates,05/10/2022,Electricity,Estates Operations,Opus Energy Ltd,42089664,"97,807.13 ",Mains electricity HRI FY 2022/23,"YO8 8PH	"
Community Division,Community Nursing,26/10/2022,Training Expenses,End Of Life & Palliative care,Overgate Hospice,194,"34,057.82 ",End of Life Educator,HX5 0QY
Pmu,Pmu,14/10/2022,Drugs,Pmu,Pilz Ltd,0000000006,"29,335.05 ",Pharmaceutical Purchase,S75 3SP
Pmu,Pmu,14/10/2022,Drugs,Pmu,Pilz Ltd,0000000007,"29,568.33 ",Pharmaceutical Purchase,S75 3SP
Medical Division,Emergency Medicine,26/10/2022,B5 Agency Nursing,A&E Nursing,Red Group Personnel Ltd,021022CH,"6,205.38 ",B5 Agency Nursing,HA3 5AB
Surgery & Anaesthetics,General Surgery,26/10/2022,B5 Agency Nursing,Endoscopy,Red Group Personnel Ltd,021022CH,454.77 ,B5 Agency Nursing,HA3 5AB
Medical Division,Medical Specialities,26/10/2022,B5 Agency Nursing,Gastroenterology,Red Group Personnel Ltd,021022CH,574.44 ,B5 Agency Nursing,HA3 5AB
Medical Division,Acute Medical,26/10/2022,B5 Agency Nursing,General Medicine,Red Group Personnel Ltd,021022CH,"8,949.78 ",B5 Agency Nursing,HA3 5AB
Surgery & Anaesthetics,General Surgery,26/10/2022,B5 Agency Nursing,General Surgery,Red Group Personnel Ltd,021022CH,"1,192.33 ",B5 Agency Nursing,HA3 5AB
Medical Division,Acute Medical,26/10/2022,B5 Agency Nursing,Geriatric Medicine,Red Group Personnel Ltd,021022CH,"2,752.18 ",B5 Agency Nursing,HA3 5AB
Medical Division,Integrated Medical Specialities,26/10/2022,B5 Agency Nursing,Ims Stroke / Rehabilitation,Red Group Personnel Ltd,021022CH,821.28 ,B5 Agency Nursing,HA3 5AB
Surgery & Anaesthetics,Operating Services,26/10/2022,B5 Agency Nursing,Operating Services,Red Group Personnel Ltd,021022CH,"5,003.45 ",B5 Agency Nursing,HA3 5AB
Medical Division,Medical Specialities,26/10/2022,B5 Agency Nursing,Respiratory,Red Group Personnel Ltd,021022CH,"5,082.44 ",B5 Agency Nursing,HA3 5AB
Surgery & Anaesthetics,Orthopaedics,26/10/2022,B5 Agency Nursing,Trauma & Orthopaedics,Red Group Personnel Ltd,021022CH,550.51 ,B5 Agency Nursing,HA3 5AB
Medical Division,Emergency Medicine,07/10/2022,B5 Agency Nursing,A&E Nursing,Red Group Personnel Ltd,080922CAL,"3,478.77 ",B5 Agency Nursing,HA3 5AB
Corporate Services,Central Operations Team CORP,07/10/2022,B5 Agency Nursing,Central Operations Team CORP,Red Group Personnel Ltd,080922CAL,"2,004.20 ",B5 Agency Nursing,HA3 5AB
Surgery & Anaesthetics,Head & Neck,07/10/2022,B5 Agency Nursing,Ent,Red Group Personnel Ltd,080922CAL,621.97 ,B5 Agency Nursing,HA3 5AB
Medical Division,Medical Specialities,07/10/2022,B5 Agency Nursing,Gastroenterology,Red Group Personnel Ltd,080922CAL,"2,163.94 ",B5 Agency Nursing,HA3 5AB
Medical Division,Acute Medical,07/10/2022,B5 Agency Nursing,General Medicine,Red Group Personnel Ltd,080922CAL,"11,083.38 ",B5 Agency Nursing,HA3 5AB
Surgery & Anaesthetics,General Surgery,07/10/2022,B5 Agency Nursing,General Surgery,Red Group Personnel Ltd,080922CAL,"2,273.50 ",B5 Agency Nursing,HA3 5AB
Medical Division,Acute Medical,07/10/2022,B5 Agency Nursing,Geriatric Medicine,Red Group Personnel Ltd,080922CAL,"6,729.50 ",B5 Agency Nursing,HA3 5AB
Medical Division,Integrated Medical Specialities,07/10/2022,B5 Agency Nursing,Ims Stroke / Rehabilitation,Red Group Personnel Ltd,080922CAL,"4,312.09 ",B5 Agency Nursing,HA3 5AB
Medical Division,Integrated Medical Specialities,07/10/2022,B5 Agency Nursing,Medical Oncology,Red Group Personnel Ltd,080922CAL,669.72 ,B5 Agency Nursing,HA3 5AB
Surgery & Anaesthetics,Operating Services,07/10/2022,B5 Agency Nursing,Operating Services,Red Group Personnel Ltd,080922CAL,"2,253.02 ",B5 Agency Nursing,HA3 5AB
Balance Sheet,Fixed Assets,26/10/2022,Additions - Assets Under Construction,Capital (Estates),Protec Fire Detection Plc,OP/I884508,"42,481.20 ",EMERGENCY LIGHTING - PANEL 14 - SUPPLY & INSTALLATION OF DIGILITE NON MAINTAINED FITTINGS INCLUDING THE STRIP OUT OF 110V SUPPLIES AND REMOVAL OF CENTRAL BATTERY AS PER YOUR QUOTE,BB9 6RT
Balance Sheet,L2 Current Assets,05/10/2022,Finished Processed Goods,Stock & Work In Progress,Qualasept Ltd,SQS0156691,"28,350.00 ",Pharmaceutical Purchase,SN13 9RG
Medical Division,Medical Specialities,07/10/2022,B5 Agency Nursing,Respiratory,Red Group Personnel Ltd,080922CAL,9402.28,B5 Agency Nursing,HA3 5AB
Medical Division,Emergency Medicine,07/10/2022,B5 Agency Nursing,A&E Nursing,Red Group Personnel Ltd,160922CAL,"6,107.48 ",B5 Agency Nursing,HA3 5AB
Medical Division,Medical Specialities,07/10/2022,B5 Agency Nursing,Cardiology,Red Group Personnel Ltd,160922CAL,941.13 ,B5 Agency Nursing,HA3 5AB
Surgery & Anaesthetics,Head & Neck,07/10/2022,B5 Agency Nursing,Ent,Red Group Personnel Ltd,160922CAL,633.88 ,B5 Agency Nursing,HA3 5AB
Medical Division,Acute Medical,07/10/2022,B5 Agency Nursing,General Medicine,Red Group Personnel Ltd,160922CAL,"13,573.30 ",B5 Agency Nursing,HA3 5AB
Surgery & Anaesthetics,General Surgery,07/10/2022,B5 Agency Nursing,General Surgery,Red Group Personnel Ltd,160922CAL,"3,581.10 ",B5 Agency Nursing,HA3 5AB
Medical Division,Acute Medical,07/10/2022,B5 Agency Nursing,Geriatric Medicine,Red Group Personnel Ltd,160922CAL,"10,336.99 ",B5 Agency Nursing,HA3 5AB
Medical Division,Integrated Medical Specialities,07/10/2022,B5 Agency Nursing,Ims Stroke / Rehabilitation,Red Group Personnel Ltd,160922CAL,"3,026.57 ",B5 Agency Nursing,HA3 5AB
Medical Division,Integrated Medical Specialities,07/10/2022,B5 Agency Nursing,Medical Oncology,Red Group Personnel Ltd,160922CAL,"2,002.80 ",B5 Agency Nursing,HA3 5AB
Surgery & Anaesthetics,Operating Services,07/10/2022,B5 Agency Nursing,Operating Services,Red Group Personnel Ltd,160922CAL,"4,806.40 ",B5 Agency Nursing,HA3 5AB
Medical Division,Medical Specialities,07/10/2022,B5 Agency Nursing,Respiratory,Red Group Personnel Ltd,160922CAL,"9,021.75 ",B5 Agency Nursing,HA3 5AB
Medical Division,Emergency Medicine,14/10/2022,B5 Agency Nursing,A&E Nursing,Red Group Personnel Ltd,180922CH,"6,661.93 ",B5 Agency Nursing,HA3 5AB
Corporate Services,Central Operations Team CORP,14/10/2022,B5 Agency Nursing,Central Operations Team CORP,Red Group Personnel Ltd,180922CH,418.58 ,B5 Agency Nursing,HA3 5AB
Surgery & Anaesthetics,Head & Neck,14/10/2022,B5 Agency Nursing,Ent,Red Group Personnel Ltd,180922CH,621.97 ,B5 Agency Nursing,HA3 5AB
Medical Division,Medical Specialities,14/10/2022,B5 Agency Nursing,Gastroenterology,Red Group Personnel Ltd,180922CH,"1,158.61 ",B5 Agency Nursing,HA3 5AB
Medical Division,Acute Medical,14/10/2022,B5 Agency Nursing,General Medicine,Red Group Personnel Ltd,180922CH,"9,639.03 ",B5 Agency Nursing,HA3 5AB
Surgery & Anaesthetics,General Surgery,14/10/2022,B5 Agency Nursing,General Surgery,Red Group Personnel Ltd,180922CH,621.97 ,B5 Agency Nursing,HA3 5AB
Medical Division,Acute Medical,14/10/2022,B5 Agency Nursing,Geriatric Medicine,Red Group Personnel Ltd,180922CH,"4,115.91 ",B5 Agency Nursing,HA3 5AB
Medical Division,Integrated Medical Specialities,14/10/2022,B5 Agency Nursing,Ims Stroke / Rehabilitation,Red Group Personnel Ltd,180922CH,"1,842.18 ",B5 Agency Nursing,HA3 5AB
Medical Division,Integrated Medical Specialities,14/10/2022,B5 Agency Nursing,Medical Oncology,Red Group Personnel Ltd,180922CH,"1,818.60 ",B5 Agency Nursing,HA3 5AB
Surgery & Anaesthetics,Operating Services,14/10/2022,B5 Agency Nursing,Operating Services,Red Group Personnel Ltd,180922CH,"4,632.89 ",B5 Agency Nursing,HA3 5AB
Medical Division,Medical Specialities,14/10/2022,B5 Agency Nursing,Respiratory,Red Group Personnel Ltd,180922CH,"4,695.99 ",B5 Agency Nursing,HA3 5AB
Surgery & Anaesthetics,Orthopaedics,14/10/2022,B5 Agency Nursing,Trauma & Orthopaedics,Red Group Personnel Ltd,180922CH,"3,067.09 ",B5 Agency Nursing,HA3 5AB
Medical Division,Emergency Medicine,21/10/2022,B5 Agency Nursing,A&E Nursing,Red Group Personnel Ltd,250922CH,"9,080.54 ",B5 Agency Nursing,HA3 5AB
Medical Division,Medical Specialities,21/10/2022,B5 Agency Nursing,Gastroenterology,Red Group Personnel Ltd,250922CH,"1,117.66 ",B5 Agency Nursing,HA3 5AB
Medical Division,Acute Medical,21/10/2022,B5 Agency Nursing,General Medicine,Red Group Personnel Ltd,250922CH,"9,026.08 ",B5 Agency Nursing,HA3 5AB
Medical Division,Acute Medical,21/10/2022,B5 Agency Nursing,Geriatric Medicine,Red Group Personnel Ltd,250922CH,"2,382.26 ",B5 Agency Nursing,HA3 5AB
Families & Specialist Services,Womens,21/10/2022,B5 Agency Nursing,Gynaecology,Red Group Personnel Ltd,250922CH,"1,609.55 ",B5 Agency Nursing,HA3 5AB
Medical Division,Integrated Medical Specialities,21/10/2022,B5 Agency Nursing,Ims Stroke / Rehabilitation,Red Group Personnel Ltd,250922CH,758.64 ,B5 Agency Nursing,HA3 5AB
Medical Division,Integrated Medical Specialities,21/10/2022,B5 Agency Nursing,Medical Oncology,Red Group Personnel Ltd,250922CH,"1,244.16 ",B5 Agency Nursing,HA3 5AB
Surgery & Anaesthetics,Operating Services,21/10/2022,B5 Agency Nursing,Operating Services,Red Group Personnel Ltd,250922CH,"5,085.09 ",B5 Agency Nursing,HA3 5AB
Medical Division,Medical Specialities,21/10/2022,B5 Agency Nursing,Respiratory,Red Group Personnel Ltd,250922CH,"5,154.48 ",B5 Agency Nursing,HA3 5AB
Surgery & Anaesthetics,Orthopaedics,21/10/2022,B5 Agency Nursing,Trauma & Orthopaedics,Red Group Personnel Ltd,250922CH,621.97 ,B5 Agency Nursing,HA3 5AB
Families & Specialist Services,Pathology,26/10/2022,Laboratory Bottles And Containers,Path General,Roche Diagnostics Ltd,6571630761,"84,407.70 ",Managed Service Contract for 2022/23 for INR  Glucose  Ketones and molecular POCT for CHFT,RH15 9RY
Families & Specialist Services,Pathology,26/10/2022,Laboratory Test Kits,Cell Path,Roche Diagnostics Ltd,6571630777,"47,830.20 ",managed service contract for Immunohistochemistry as per ref ref S/2966/11/CB/T. ,RH15 9RY
Balance Sheet,L2 Current Assets,26/10/2022,Finished Processed Goods,Stock & Work In Progress,Roche Products Ltd,1322252369,"32,536.80 ",Pharmaceutical Purchase,AL7 1TW
Balance Sheet,L2 Current Assets,26/10/2022,Finished Processed Goods,Stock & Work In Progress,Roche Products Ltd,1322255217,"27,669.48 ",Pharmaceutical Purchase,AL7 1TW
CHS Estates,L2 Estates,26/10/2022,Water,Estates Operations,Scottish Water Business Stream Ltd,1001413-2022-10,"37,780.78 ",Mains water and sewerage CRH  Beechwood HC  The Clock House & Building 1 Acre Mill,EH12 9DH
CHS Estates,L2 Estates,01/10/2022,Gas,Estates Operations,SEFE Energy Limited.,INV02378715,"214,739.73 ",Mains gas HRI main meter,NW1 3BF
CHS Estates,L2 Estates,01/10/2022,Gas,Estates Operations,SEFE Energy Limited.,INV02426736,"166,893.18 ",Mains gas HRI main meter,NW1 3BF
CHS Estates,L2 Estates,01/10/2022,Gas,Estates Operations,SEFE Energy Limited.,INV02473349,"135,131.80 ",Mains gas HRI main meter,NW1 3BF
Families & Specialist Services,Pathology,14/10/2022,Laboratory Chemicals,Path Chemical Pathology,Siemens Healthcare Diagnostics Ltd,114770823,"156,629.44 ",Biochemistry Managed Service Contract,GU16 8QD
Community Division,Community Therapies,26/10/2022,Patients Appliances : Purchase,Patient Appliances,Taycare Medical Ltd,21550,"48,660.45 ",supply of specialist orthotic products,LS12 6LL
Recharges,Recharges,14/10/2022,Healthcare From NHS Trusts,Recharges,The Leeds Teaching Hospitals NHS Trust,1410196326,"245,504.66 ",Various services provided by agreement as per West Yorkshire Association of Acute Trusts agreed methodology,LS9 7TF
CHS Facilities,L2 Facilities,19/10/2022,Contract : Premises Security,Security,The Leeds Teaching Hospitals NHS Trust,1410195899,"36,161.22 ",Security Contract,LS9 7TF
CHS Facilities,L2 Facilities,19/10/2022,Contract : Premises Security,Security,The Leeds Teaching Hospitals NHS Trust,1410195902,"30,134.35 ",Security Contract,LS9 7TF
Balance Sheet,Fixed Assets,26/10/2022,Additions - Assets Under Construction,Capital (Estates),The Together Group Construction Ltd,2888,"119,497.30 ",CHILD DEVELOPMENT UNIT - REFURBISHMENT OF THE CLOCK HOUSE TO CREATE A CHILD DEVELOPMENT UNIT - AS PER CONTRACT,LS22 5DZ
Balance Sheet,L2 Current Assets,26/10/2022,Other Debtors < One Year,Other Debtors,Tuskerdirect Ltd,65752,"115,990.82 ",Salary Sacrifice cars,WD18 8YF
CHS Estates,L2 Estates,21/10/2022,Insurance Costs,Management Estates,Willis Ltd,11173GP22/000001PRM,"202,410.88 ",COMPANY INSURANCE PERIOD 1 SEPTEMBER 2022 - 31 AUGUST 2023. COMBINED LIABLITY RENEWAL ,EC3M 7DQ
Corporate Services,Finance,12/10/2022,Audit Fees : Internal,Finance,York and Scarborough Teaching Hospitals NHS Foundation Trust,1010086267,"37,714.00 ",2022/23 INTERNAL AUDIT CHARGES INCLUDES COUNTER FRAUD DAYS,YO30 4RY
Medical Division,Emergency Medicine,07/10/2022,B5 Agency Nursing,A&E Nursing,Your Nurse Ltd,YNLX37,"19,829.27 ",B5 Agency Nursing,EC3V 0EH
Medical Division,Medical Specialities,07/10/2022,B5 Agency Nursing,Cardiology,Your Nurse Ltd,YNLX37,"1,740.83 ",B5 Agency Nursing,EC3V 0EH
Corporate Services,Central Operations Team CORP,07/10/2022,B5 Agency Nursing,Central Operations Team CORP,Your Nurse Ltd,YNLX37,"4,341.05 ",B5 Agency Nursing,EC3V 0EH
Medical Division,Medical Specialities,07/10/2022,B5 Agency Nursing,Gastroenterology,Your Nurse Ltd,YNLX37,"5,438.26 ",B5 Agency Nursing,EC3V 0EH
Medical Division,Acute Medical,07/10/2022,B5 Agency Nursing,General Medicine,Your Nurse Ltd,YNLX37,"4,122.20 ",B5 Agency Nursing,EC3V 0EH
Surgery & Anaesthetics,General Surgery,07/10/2022,B5 Agency Nursing,General Surgery,Your Nurse Ltd,YNLX37,"9,813.96 ",B5 Agency Nursing,EC3V 0EH
Medical Division,Acute Medical,07/10/2022,B5 Agency Nursing,Geriatric Medicine,Your Nurse Ltd,YNLX37,"10,607.92 ",B5 Agency Nursing,EC3V 0EH
Families & Specialist Services,Womens,07/10/2022,B5 Agency Nursing,Gynaecology,Your Nurse Ltd,YNLX37,"2,895.20 ",B5 Agency Nursing,EC3V 0EH
Medical Division,Integrated Medical Specialities,07/10/2022,B5 Agency Nursing,Ims Stroke / Rehabilitation,Your Nurse Ltd,YNLX37,"3,726.55 ",B5 Agency Nursing,EC3V 0EH
Medical Division,Integrated Medical Specialities,07/10/2022,B5 Agency Nursing,Medical Oncology,Your Nurse Ltd,YNLX37,"3,376.01 ",B5 Agency Nursing,EC3V 0EH
Surgery & Anaesthetics,Operating Services,07/10/2022,B5 Agency Nursing,Operating Services,Your Nurse Ltd,YNLX37,"3,128.81 ",B5 Agency Nursing,EC3V 0EH
Medical Division,Medical Specialities,07/10/2022,B5 Agency Nursing,Respiratory,Your Nurse Ltd,YNLX37,"6,033.58 ",B5 Agency Nursing,EC3V 0EH
Surgery & Anaesthetics,Orthopaedics,07/10/2022,B5 Agency Nursing,Trauma & Orthopaedics,Your Nurse Ltd,YNLX37,"3,622.60 ",B5 Agency Nursing,EC3V 0EH
Medical Division,Emergency Medicine,07/10/2022,B5 Agency Nursing,A&E Nursing,Your Nurse Ltd,YNLX38,"12,602.03 ",B5 Agency Nursing,EC3V 0EH
Medical Division,Medical Specialities,07/10/2022,B5 Agency Nursing,Cardiology,Your Nurse Ltd,YNLX38,577.15 ,B5 Agency Nursing,EC3V 0EH
Corporate Services,Central Operations Team CORP,07/10/2022,B5 Agency Nursing,Central Operations Team CORP,Your Nurse Ltd,YNLX38,"7,234.41 ",B5 Agency Nursing,EC3V 0EH
Surgery & Anaesthetics,Head & Neck,07/10/2022,B5 Agency Nursing,Ent,Your Nurse Ltd,YNLX38,706.19 ,B5 Agency Nursing,EC3V 0EH
Medical Division,Medical Specialities,07/10/2022,B5 Agency Nursing,Gastroenterology,Your Nurse Ltd,YNLX38,"7,078.08 ",B5 Agency Nursing,EC3V 0EH
Medical Division,Acute Medical,07/10/2022,B5 Agency Nursing,General Medicine,Your Nurse Ltd,YNLX38,"6,457.46 ",B5 Agency Nursing,EC3V 0EH
Surgery & Anaesthetics,General Surgery,07/10/2022,B5 Agency Nursing,General Surgery,Your Nurse Ltd,YNLX38,"9,693.28 ",B5 Agency Nursing,EC3V 0EH
Medical Division,Acute Medical,07/10/2022,B5 Agency Nursing,Geriatric Medicine,Your Nurse Ltd,YNLX38,"16,418.57 ",B5 Agency Nursing,EC3V 0EH
Families & Specialist Services,Womens,07/10/2022,B5 Agency Nursing,Gynaecology,Your Nurse Ltd,YNLX38,"3,494.98 ",B5 Agency Nursing,EC3V 0EH
Medical Division,Integrated Medical Specialities,07/10/2022,B5 Agency Nursing,Ims Stroke / Rehabilitation,Your Nurse Ltd,YNLX38,"2,347.28 ",B5 Agency Nursing,EC3V 0EH
Medical Division,Integrated Medical Specialities,07/10/2022,B5 Agency Nursing,Medical Oncology,Your Nurse Ltd,YNLX38,"2,433.01 ",B5 Agency Nursing,EC3V 0EH
Surgery & Anaesthetics,Operating Services,07/10/2022,B5 Agency Nursing,Operating Services,Your Nurse Ltd,YNLX38,493.76 ,B5 Agency Nursing,EC3V 0EH
Medical Division,Medical Specialities,07/10/2022,B5 Agency Nursing,Respiratory,Your Nurse Ltd,YNLX38,"3,493.80 ",B5 Agency Nursing,EC3V 0EH
Surgery & Anaesthetics,Orthopaedics,07/10/2022,B5 Agency Nursing,Trauma & Orthopaedics,Your Nurse Ltd,YNLX38,"1,210.31 ",B5 Agency Nursing,EC3V 0EH
Medical Division,Emergency Medicine,07/10/2022,B5 Agency Nursing,A&E Nursing,Your Nurse Ltd,YNLX40,"21,297.28 ",B5 Agency Nursing,EC3V 0EH
Medical Division,Medical Specialities,07/10/2022,B5 Agency Nursing,Cardiology,Your Nurse Ltd,YNLX40,"3,028.22 ",B5 Agency Nursing,EC3V 0EH
Corporate Services,Central Operations Team CORP,07/10/2022,B5 Agency Nursing,Central Operations Team CORP,Your Nurse Ltd,YNLX40,"6,327.29 ",B5 Agency Nursing,EC3V 0EH
Surgery & Anaesthetics,Critical Care,07/10/2022,B5 Agency Nursing,Critical Care,Your Nurse Ltd,YNLX40,706.19 ,B5 Agency Nursing,EC3V 0EH
Surgery & Anaesthetics,Head & Neck,07/10/2022,B5 Agency Nursing,Ent,Your Nurse Ltd,YNLX40,686.55 ,B5 Agency Nursing,EC3V 0EH
Medical Division,Medical Specialities,07/10/2022,B5 Agency Nursing,Gastroenterology,Your Nurse Ltd,YNLX40,"1,205.55 ",B5 Agency Nursing,EC3V 0EH
Medical Division,Acute Medical,07/10/2022,B5 Agency Nursing,General Medicine,Your Nurse Ltd,YNLX40,"9,922.45 ",B5 Agency Nursing,EC3V 0EH
Surgery & Anaesthetics,General Surgery,07/10/2022,B5 Agency Nursing,General Surgery,Your Nurse Ltd,YNLX40,"10,936.72 ",B5 Agency Nursing,EC3V 0EH
Medical Division,Acute Medical,07/10/2022,B5 Agency Nursing,Geriatric Medicine,Your Nurse Ltd,YNLX40,"17,999.38 ",B5 Agency Nursing,EC3V 0EH
Families & Specialist Services,Womens,07/10/2022,B5 Agency Nursing,Gynaecology,Your Nurse Ltd,YNLX40,"1,455.51 ",B5 Agency Nursing,EC3V 0EH
Medical Division,Integrated Medical Specialities,07/10/2022,B5 Agency Nursing,Ims Stroke / Rehabilitation,Your Nurse Ltd,YNLX40,"1,739.22 ",B5 Agency Nursing,EC3V 0EH
Surgery & Anaesthetics,Operating Services,07/10/2022,B5 Agency Nursing,Operating Services,Your Nurse Ltd,YNLX40,"3,385.82 ",B5 Agency Nursing,EC3V 0EH
Medical Division,Medical Specialities,07/10/2022,B5 Agency Nursing,Respiratory,Your Nurse Ltd,YNLX40,"4,937.10 ",B5 Agency Nursing,EC3V 0EH
Surgery & Anaesthetics,Orthopaedics,07/10/2022,B5 Agency Nursing,Trauma & Orthopaedics,Your Nurse Ltd,YNLX40,"4,848.84 ",B5 Agency Nursing,EC3V 0EH
Medical Division,Emergency Medicine,07/10/2022,B5 Agency Nursing,A&E Nursing,Your Nurse Ltd,YNLX41,"20,854.06 ",B5 Agency Nursing,EC3V 0EH
Medical Division,Medical Specialities,07/10/2022,B5 Agency Nursing,Cardiology,Your Nurse Ltd,YNLX41,"3,181.58 ",B5 Agency Nursing,EC3V 0EH
Corporate Services,Central Operations Team CORP,07/10/2022,B5 Agency Nursing,Central Operations Team CORP,Your Nurse Ltd,YNLX41,"5,490.59 ",B5 Agency Nursing,EC3V 0EH
Medical Division,Medical Specialities,07/10/2022,B5 Agency Nursing,Gastroenterology,Your Nurse Ltd,YNLX41,"3,368.48 ",B5 Agency Nursing,EC3V 0EH
Medical Division,Acute Medical,07/10/2022,B5 Agency Nursing,General Medicine,Your Nurse Ltd,YNLX41,"8,430.10 ",B5 Agency Nursing,EC3V 0EH
Surgery & Anaesthetics,General Surgery,07/10/2022,B5 Agency Nursing,General Surgery,Your Nurse Ltd,YNLX41,"7,330.13 ",B5 Agency Nursing,EC3V 0EH
Medical Division,Acute Medical,07/10/2022,B5 Agency Nursing,Geriatric Medicine,Your Nurse Ltd,YNLX41,"14,628.39 ",B5 Agency Nursing,EC3V 0EH
Families & Specialist Services,Womens,07/10/2022,B5 Agency Nursing,Gynaecology,Your Nurse Ltd,YNLX41,"2,834.30 ",B5 Agency Nursing,EC3V 0EH
Medical Division,Integrated Medical Specialities,07/10/2022,B5 Agency Nursing,Ims Stroke / Rehabilitation,Your Nurse Ltd,YNLX41,"3,008.54 ",B5 Agency Nursing,EC3V 0EH
Medical Division,Integrated Medical Specialities,07/10/2022,B5 Agency Nursing,Medical Oncology,Your Nurse Ltd,YNLX41,"2,342.72 ",B5 Agency Nursing,EC3V 0EH
Surgery & Anaesthetics,Operating Services,07/10/2022,B5 Agency Nursing,Operating Services,Your Nurse Ltd,YNLX41,"2,144.36 ",B5 Agency Nursing,EC3V 0EH
Medical Division,Medical Specialities,07/10/2022,B5 Agency Nursing,Respiratory,Your Nurse Ltd,YNLX41,"1,793.25 ",B5 Agency Nursing,EC3V 0EH
Surgery & Anaesthetics,Orthopaedics,07/10/2022,B5 Agency Nursing,Trauma & Orthopaedics,Your Nurse Ltd,YNLX41,"2,366.24 ",B5 Agency Nursing,EC3V 0EH
Medical Division,Emergency Medicine,07/10/2022,B5 Agency Nursing,A&E Nursing,Your Nurse Ltd,YNLX42,"22,213.00 ",B5 Agency Nursing,EC3V 0EH
Medical Division,Medical Specialities,07/10/2022,B5 Agency Nursing,Cardiology,Your Nurse Ltd,YNLX42,"2,896.74 ",B5 Agency Nursing,EC3V 0EH
Corporate Services,Central Operations Team CORP,07/10/2022,B5 Agency Nursing,Central Operations Team CORP,Your Nurse Ltd,YNLX42,"5,506.95 ",B5 Agency Nursing,EC3V 0EH
Surgery & Anaesthetics,Critical Care,07/10/2022,B5 Agency Nursing,Critical Care,Your Nurse Ltd,YNLX42,"1,412.38 ",B5 Agency Nursing,EC3V 0EH
Medical Division,Medical Specialities,07/10/2022,B5 Agency Nursing,Gastroenterology,Your Nurse Ltd,YNLX42,"7,945.75 ",B5 Agency Nursing,EC3V 0EH
Medical Division,Acute Medical,07/10/2022,B5 Agency Nursing,General Medicine,Your Nurse Ltd,YNLX42,"10,086.35 ",B5 Agency Nursing,EC3V 0EH
Surgery & Anaesthetics,General Surgery,07/10/2022,B5 Agency Nursing,General Surgery,Your Nurse Ltd,YNLX42,"17,994.20 ",B5 Agency Nursing,EC3V 0EH
Medical Division,Acute Medical,07/10/2022,B5 Agency Nursing,Geriatric Medicine,Your Nurse Ltd,YNLX42,"13,565.86 ",B5 Agency Nursing,EC3V 0EH
Medical Division,Integrated Medical Specialities,07/10/2022,B5 Agency Nursing,Ims Stroke / Rehabilitation,Your Nurse Ltd,YNLX42,"5,374.13 ",B5 Agency Nursing,EC3V 0EH
Medical Division,Integrated Medical Specialities,07/10/2022,B5 Agency Nursing,Medical Oncology,Your Nurse Ltd,YNLX42,"1,154.30 ",B5 Agency Nursing,EC3V 0EH
Surgery & Anaesthetics,Operating Services,07/10/2022,B5 Agency Nursing,Operating Services,Your Nurse Ltd,YNLX42,"2,680.45 ",B5 Agency Nursing,EC3V 0EH
Medical Division,Medical Specialities,07/10/2022,B5 Agency Nursing,Respiratory,Your Nurse Ltd,YNLX42,"4,099.07 ",B5 Agency Nursing,EC3V 0EH
Surgery & Anaesthetics,Orthopaedics,07/10/2022,B5 Agency Nursing,Trauma & Orthopaedics,Your Nurse Ltd,YNLX42,"4,774.28 ",B5 Agency Nursing,EC3V 0EH
Medical Division,Emergency Medicine,19/10/2022,B5 Agency Nursing,A&E Nursing,Your Nurse Ltd,YNLX43,"23,160.48 ",B5 Agency Nursing,EC3V 0EH
Medical Division,Medical Specialities,19/10/2022,B5 Agency Nursing,Cardiology,Your Nurse Ltd,YNLX43,"3,394.08 ",B5 Agency Nursing,EC3V 0EH
Corporate Services,Central Operations Team CORP,19/10/2022,B5 Agency Nursing,Central Operations Team CORP,Your Nurse Ltd,YNLX43,601.27 ,B5 Agency Nursing,EC3V 0EH
Medical Division,Medical Specialities,19/10/2022,B5 Agency Nursing,Gastroenterology,Your Nurse Ltd,YNLX43,"5,969.77 ",B5 Agency Nursing,EC3V 0EH
Medical Division,Acute Medical,19/10/2022,B5 Agency Nursing,General Medicine,Your Nurse Ltd,YNLX43,"23,645.49 ",B5 Agency Nursing,EC3V 0EH
Surgery & Anaesthetics,General Surgery,19/10/2022,B5 Agency Nursing,General Surgery,Your Nurse Ltd,YNLX43,"7,874.91 ",B5 Agency Nursing,EC3V 0EH
Medical Division,Acute Medical,19/10/2022,B5 Agency Nursing,Geriatric Medicine,Your Nurse Ltd,YNLX43,"15,621.99 ",B5 Agency Nursing,EC3V 0EH
Families & Specialist Services,Womens,19/10/2022,B5 Agency Nursing,Gynaecology,Your Nurse Ltd,YNLX43,706.19 ,B5 Agency Nursing,EC3V 0EH
Medical Division,Integrated Medical Specialities,19/10/2022,B5 Agency Nursing,Ims Stroke / Rehabilitation,Your Nurse Ltd,YNLX43,"7,673.08 ",B5 Agency Nursing,EC3V 0EH
Families & Specialist Services,Childrens,19/10/2022,B5 Agency Nursing,Inpatients Paediatrics,Your Nurse Ltd,YNLX43,715.73 ,B5 Agency Nursing,EC3V 0EH
Medical Division,Integrated Medical Specialities,19/10/2022,B5 Agency Nursing,Medical Oncology,Your Nurse Ltd,YNLX43,"4,822.77 ",B5 Agency Nursing,EC3V 0EH
Surgery & Anaesthetics,Operating Services,19/10/2022,B5 Agency Nursing,Operating Services,Your Nurse Ltd,YNLX43,"5,048.97 ",B5 Agency Nursing,EC3V 0EH
Medical Division,Medical Specialities,19/10/2022,B5 Agency Nursing,Respiratory,Your Nurse Ltd,YNLX43,"6,407.68 ",B5 Agency Nursing,EC3V 0EH
Surgery & Anaesthetics,Orthopaedics,19/10/2022,B5 Agency Nursing,Trauma & Orthopaedics,Your Nurse Ltd,YNLX43,"8,645.40 ",B5 Agency Nursing,EC3V 0EH
Medical Division,Emergency Medicine,21/10/2022,B5 Agency Nursing,A&E Nursing,Your Nurse Ltd,YNLX44,"38,519.71 ",B5 Agency Nursing,EC3V 0EH
Medical Division,Medical Specialities,21/10/2022,B5 Agency Nursing,Cardiology,Your Nurse Ltd,YNLX44,"3,198.82 ",B5 Agency Nursing,EC3V 0EH
Corporate Services,Central Operations Team CORP,21/10/2022,B5 Agency Nursing,Central Operations Team CORP,Your Nurse Ltd,YNLX44,"4,008.20 ",B5 Agency Nursing,EC3V 0EH
Surgery & Anaesthetics,Critical Care,21/10/2022,B5 Agency Nursing,Critical Care,Your Nurse Ltd,YNLX44,706.19 ,B5 Agency Nursing,EC3V 0EH
Surgery & Anaesthetics,Head & Neck,21/10/2022,B5 Agency Nursing,Ent,Your Nurse Ltd,YNLX44,637.90 ,B5 Agency Nursing,EC3V 0EH
Medical Division,Medical Specialities,21/10/2022,B5 Agency Nursing,Gastroenterology,Your Nurse Ltd,YNLX44,"6,162.48 ",B5 Agency Nursing,EC3V 0EH
Medical Division,Acute Medical,21/10/2022,B5 Agency Nursing,General Medicine,Your Nurse Ltd,YNLX44,"19,971.72 ",B5 Agency Nursing,EC3V 0EH
Surgery & Anaesthetics,General Surgery,21/10/2022,B5 Agency Nursing,General Surgery,Your Nurse Ltd,YNLX44,"5,753.91 ",B5 Agency Nursing,EC3V 0EH
Medical Division,Acute Medical,21/10/2022,B5 Agency Nursing,Geriatric Medicine,Your Nurse Ltd,YNLX44,"16,770.62 ",B5 Agency Nursing,EC3V 0EH
Medical Division,Integrated Medical Specialities,21/10/2022,B5 Agency Nursing,Ims Stroke / Rehabilitation,Your Nurse Ltd,YNLX44,"6,474.85 ",B5 Agency Nursing,EC3V 0EH
Medical Division,Integrated Medical Specialities,21/10/2022,B5 Agency Nursing,Medical Oncology,Your Nurse Ltd,YNLX44,"4,411.69 ",B5 Agency Nursing,EC3V 0EH
Families & Specialist Services,Childrens,21/10/2022,B5 Agency Nursing,Nicu,Your Nurse Ltd,YNLX44,733.50 ,B5 Agency Nursing,EC3V 0EH
Surgery & Anaesthetics,Operating Services,21/10/2022,B5 Agency Nursing,Operating Services,Your Nurse Ltd,YNLX44,"5,796.83 ",B5 Agency Nursing,EC3V 0EH
Medical Division,Medical Specialities,21/10/2022,B5 Agency Nursing,Respiratory,Your Nurse Ltd,YNLX44,"8,322.96 ",B5 Agency Nursing,EC3V 0EH
Surgery & Anaesthetics,Orthopaedics,21/10/2022,B5 Agency Nursing,Trauma & Orthopaedics,Your Nurse Ltd,YNLX44,"6,421.21 ",B5 Agency Nursing,EC3V 0EH
Medical Division,Emergency Medicine,26/10/2022,B5 Agency Nursing,A&E Nursing,Your Nurse Ltd,YNLX45,"20,881.57 ",B5 Agency Nursing,EC3V 0EH
Medical Division,Medical Specialities,26/10/2022,B5 Agency Nursing,Cardiology,Your Nurse Ltd,YNLX45,"1,731.45 ",B5 Agency Nursing,EC3V 0EH
Corporate Services,Central Operations Team CORP,26/10/2022,B5 Agency Nursing,Central Operations Team CORP,Your Nurse Ltd,YNLX45,609.04 ,B5 Agency Nursing,EC3V 0EH
Surgery & Anaesthetics,Critical Care,26/10/2022,B5 Agency Nursing,Critical Care,Your Nurse Ltd,YNLX45,"1,421.92 ",B5 Agency Nursing,EC3V 0EH
Medical Division,Medical Specialities,26/10/2022,B5 Agency Nursing,Gastroenterology,Your Nurse Ltd,YNLX45,"5,051.01 ",B5 Agency Nursing,EC3V 0EH
Medical Division,Acute Medical,26/10/2022,B5 Agency Nursing,General Medicine,Your Nurse Ltd,YNLX45,"17,618.89 ",B5 Agency Nursing,EC3V 0EH
Surgery & Anaesthetics,General Surgery,26/10/2022,B5 Agency Nursing,General Surgery,Your Nurse Ltd,YNLX45,"3,620.13 ",B5 Agency Nursing,EC3V 0EH
Medical Division,Acute Medical,26/10/2022,B5 Agency Nursing,Geriatric Medicine,Your Nurse Ltd,YNLX45,"14,858.87 ",B5 Agency Nursing,EC3V 0EH
Families & Specialist Services,Womens,26/10/2022,B5 Agency Nursing,Gynaecology,Your Nurse Ltd,YNLX45,"1,355.14 ",B5 Agency Nursing,EC3V 0EH
Medical Division,Integrated Medical Specialities,26/10/2022,B5 Agency Nursing,Ims Stroke / Rehabilitation,Your Nurse Ltd,YNLX45,"7,113.61 ",B5 Agency Nursing,EC3V 0EH
Medical Division,Integrated Medical Specialities,26/10/2022,B5 Agency Nursing,Medical Oncology,Your Nurse Ltd,YNLX45,"3,618.20 ",B5 Agency Nursing,EC3V 0EH
Surgery & Anaesthetics,Operating Services,26/10/2022,B5 Agency Nursing,Operating Services,Your Nurse Ltd,YNLX45,"8,055.45 ",B5 Agency Nursing,EC3V 0EH
Corporate Services,Quality,26/10/2022,B5 Agency Nursing,Quality,Your Nurse Ltd,YNLX45,577.15 ,B5 Agency Nursing,EC3V 0EH
Medical Division,Medical Specialities,26/10/2022,B5 Agency Nursing,Respiratory,Your Nurse Ltd,YNLX45,"14,078.42 ",B5 Agency Nursing,EC3V 0EH
Surgery & Anaesthetics,Orthopaedics,26/10/2022,B5 Agency Nursing,Trauma & Orthopaedics,Your Nurse Ltd,YNLX45,"1,857.64 ",B5 Agency Nursing,EC3V 0EH
